bitfinex/quotes_SOLUSD_20241116
["timestamp","ask_amount","ask_price","bid_price","bid_amount"]
[1731749586501,13.81720522,218.63,218.55,14.03636984]
[1731749587003,4.5739,218.63,218.57,0.12549]
[1731749587204,4.5739,218.63,218.58,13.94269522]
[1731749587497,4.5739,218.63,218.52,16.0167]
[1731749587498,4.5749,218.58,218.48,20.10620522]
[1731749587675,13.81720522,218.57,218.49,0.09367462]
[1731749587995,4.5749,218.58,218.51,0.09367462]
[1731749588194,4.5749,218.58,218.53,0.09367462]
[1731749589000,4.5749,218.58,218.54,0.12549]
[1731749589174,13.81720522,218.61,218.54,0.12549]
[1731749589371,4.5745,218.6,218.54,0.12549]
[1731749589678,24.5745,218.6,218.54,0.12549]
[1731749590798,4.5742,218.62,218.55,14.03636984]
[1731749591096,4.5742,218.62,218.58,13.94269522]
[1731749591601,4.5742,218.62,218.58,0.12549]
[1731749595003,4.5742,218.62,218.57,16.1314]
[1731749595004,8.83658049,218.61,218.57,16.1314]
[1731749595696,8.83658049,218.58,218.53,0.25098]
[1731749596382,28.83658049,218.56,218.52,15.4264]
[1731749596585,8.83658049,218.55,218.52,15.4264]
[1731749596795,13.82015414,218.53,218.48,6.289]
[1731749597004,18.39655414,218.51,218.48,6.289]
[1731749597685,13.82015414,218.5,218.47,15.4264]
[1731749598003,13.82015414,218.5,218.43,20.02345414]
[1731749598506,4.5764,218.51,218.45,13.82015414]
[1731749599200,13.82015414,218.5,218.44,0.25098]
[1731749599403,13.82015414,218.48,218.43,6.2033]
[1731749600412,4.5764,218.51,218.42,15.4264]
[1731749600413,13.82015414,218.45,218.42,15.4264]
[1731749600581,13.82015414,218.44,218.37,6.2033]
[1731749600786,13.82015414,218.42,218.37,6.2033]
[1731749601008,13.82015414,218.41,218.37,6.2033]
[1731749601205,4.5787,218.41,218.37,6.2033]
[1731749601381,13.82015414,218.39,218.31,13.82015414]
[1731749601709,13.82015414,218.38,218.31,13.82015414]
[1731749602290,13.82015414,218.37,218.3,21.6297]
[1731749602704,13.82015414,218.36,218.3,21.6297]
[1731749603288,18.39975414,218.36,218.3,21.6297]
[1731749603803,18.39975414,218.36,218.31,0.12549]
[1731749604112,13.82015414,218.33,218.3,21.6297]
[1731749604607,13.82015414,218.33,218.25,35.44985414]
[1731749605193,13.82015414,218.33,218.26,13.82015414]
[1731749605399,13.82015414,218.33,218.27,0.09367462]
[1731749605610,18.39975414,218.36,218.29,13.82015414]
[1731749605914,20.0,218.37,218.31,13.82015414]
[1731749607092,20.0,218.37,218.3,0.25098]
[1731749607290,24.5795,218.37,218.3,14.07113414]
[1731749608908,24.5795,218.37,218.31,13.82015414]
[1731749609687,13.82015414,218.39,218.33,0.09367462]
[1731749609906,13.82015414,218.41,218.34,13.94564414]
[1731749611208,24.5787,218.4,218.34,13.94564414]
[1731749612116,4.5787,218.4,218.35,13.82015414]
[1731749612599,4.5787,218.4,218.34,13.94564414]
[1731749614117,18.39885414,218.4,218.34,0.12549]
[1731749614335,13.82015414,218.38,218.29,11.4522]
[1731749614613,33.82015414,218.36,218.29,25.27235414]
[1731749615019,33.82015414,218.36,218.3,0.09367462]
[1731749615200,20.0,218.36,218.3,13.91382876]
[1731749615400,24.5796,218.36,218.3,13.91382876]
[1731749615908,24.5796,218.36,218.31,0.12549]
[1731749616426,38.39975414,218.36,218.3,0.21916462]
[1731749616722,13.82015414,218.35,218.3,0.34465462]
[1731749616928,38.39975414,218.36,218.3,0.34465462]
[1731749617109,18.39975414,218.36,218.3,0.34465462]
[1731749622001,13.82015414,218.34,218.27,0.25098]
[1731749622199,13.82015414,218.33,218.27,0.25098]
[1731749622400,13.82015414,218.33,218.27,0.12549]
[1731749622722,13.82015414,218.32,218.27,0.12549]
[1731749622911,13.82015414,218.32,218.26,0.12549]
[1731749623120,13.82015414,218.32,218.26,0.21916462]
[1731749625200,13.82015414,218.31,218.26,0.21916462]
[1731749625623,13.82015414,218.31,218.25,21.6297]
[1731749625624,33.82015414,218.3,218.25,21.6297]
[1731749626104,13.82015414,218.29,218.25,21.6297]
[1731749626910,4.5812,218.29,218.25,21.6297]
[1731749628126,13.82015414,218.31,218.25,21.6297]
[1731749628340,18.40015414,218.34,218.27,13.82015414]
[1731749628623,13.8440374,218.33,218.26,14.06320202]
[1731749629026,13.8440374,218.33,218.26,0.21916462]
[1731749629328,16.027,218.38,218.27,13.8440374]
[1731749629527,4.5791,218.38,218.29,0.21916462]
[1731749629703,13.8440374,218.36,218.29,0.21916462]
[1731749629901,13.84231886,218.36,218.29,0.21916462]
[1731749630705,4.5798,218.35,218.29,0.21916462]
[1731749630919,18.42211886,218.35,218.29,0.21916462]
[1731749631819,13.84231886,218.33,218.26,14.09329886]
[1731749632606,13.84231886,218.33,218.27,0.09367462]
[1731749632925,4.5804,218.32,218.27,0.09367462]
[1731749634232,13.84231886,218.31,218.26,0.12549]
[1731749634529,13.84231886,218.3,218.25,21.6297]
[1731749635605,4.581,218.29,218.25,21.6297]
[1731749636008,13.84231886,218.3,218.25,21.6297]
[1731749636230,20.0,218.33,218.28,0.12549]
[1731749637015,33.84231886,218.33,218.27,0.12549]
[1731749637317,33.84231886,218.33,218.27,0.21916462]
[1731749637510,4.5804,218.32,218.27,0.21916462]
[1731749638532,4.5801,218.34,218.29,13.96780886]
[1731749639337,4.5801,218.34,218.28,14.18697348]
[1731749640031,13.84231886,218.36,218.29,13.84231886]
[1731749640215,18.42181886,218.36,218.3,0.12549]
[1731749640613,4.5795,218.36,218.3,13.96780886]
[1731749641215,24.5795,218.36,218.3,13.96780886]
[1731749642442,38.42181886,218.36,218.29,13.96780886]
[1731749643335,24.5795,218.36,218.3,13.84231886]
[1731749644209,38.42181886,218.36,218.29,13.96780886]
[1731749644922,33.43803249,218.36,218.29,8.98402249]
[1731749645118,13.43853249,218.34,218.29,0.12549]
[1731749645939,28.85853249,218.33,218.25,21.6297]
[1731749646237,8.85853249,218.31,218.25,21.6297]
[1731749646416,8.85853249,218.32,218.25,30.48823249]
[1731749647229,4.5806,218.31,218.25,30.48823249]
[1731749647435,4.5806,218.31,218.26,0.12549]
[1731749649738,4.5806,218.31,218.25,21.6297]
[1731749649739,8.85853249,218.29,218.25,21.6297]
[1731749651324,13.43973249,218.29,218.25,21.6297]
[1731749652137,4.5807,218.31,218.26,0.12549]
[1731749652444,11.4495,218.35,218.29,9.10951249]
[1731749652445,4.5798,218.35,218.29,9.10951249]
[1731749652642,4.5798,218.35,218.3,8.85853249]
[1731749653020,4.5798,218.35,218.29,9.10951249]
[1731749653448,13.43833249,218.35,218.29,0.25098]
[1731749654323,8.85853249,218.32,218.26,0.25098]
[1731749655324,4.5806,218.31,218.26,0.25098]
[1731749656120,33.43913249,218.31,218.25,21.6297]
[1731749656623,8.85853249,218.3,218.25,21.6297]
[1731749657030,4.581,218.29,218.25,21.6297]
[1731749658936,8.85853249,218.3,218.25,21.6297]
[1731749659523,4.58,218.34,218.25,30.48823249]
[1731749659822,20.0,218.31,218.25,30.48823249]
[1731749660148,4.5808,218.3,218.25,21.6297]
[1731749664837,20.0,218.31,218.25,21.6297]
[1731749665227,28.85853249,218.31,218.25,21.6297]
[1731749665551,4.5802,218.33,218.26,0.12549]
[1731749665848,4.5802,218.33,218.29,0.09367462]
[1731749666030,4.5798,218.35,218.3,0.25098]
[1731749666237,4.5798,218.35,218.32,0.12549]
[1731749669349,4.5798,218.35,218.3,0.25098]
[1731749669567,13.43833249,218.35,218.29,24.027864]
[1731749669934,13.43833249,218.35,218.3,0.09367462]
[1731749670238,4.5798,218.35,218.3,0.09367462]
[1731749670445,24.5787,218.4,218.32,0.09367462]
[1731749670643,8.85853249,218.39,218.33,0.12549]
[1731749670956,8.85853249,218.38,218.33,0.12549]
[1731749671454,8.85853249,218.37,218.3,8.85853249]
[1731749672029,4.5795,218.36,218.31,0.12549]
[1731749672454,4.5795,218.36,218.3,0.34465462]
[1731749673251,4.5795,218.36,218.3,9.20318711]
[1731749673627,8.85853249,218.38,218.32,0.09367462]
[1731749673832,20.0,218.39,218.33,8.85853249]
[1731749674954,4.5791,218.38,218.33,8.85853249]
[1731749675530,4.5791,218.38,218.33,25.43093249]
[1731749676339,4.5783,218.42,218.34,39.15287111]
[1731749676539,4.5783,218.42,218.37,8.85853249]
[1731749677141,4.5783,218.42,218.36,8.85853249]
[1731749677457,24.5783,218.42,218.36,8.85853249]
[1731749678551,4.5783,218.42,218.36,8.85853249]
[1731749678746,24.5783,218.42,218.37,0.09367462]
[1731749678936,24.5783,218.42,218.37,9.20318711]
[1731749679131,4.5783,218.42,218.37,9.20318711]
[1731749680042,4.45082549,218.48,218.39,0.34465462]
[1731749680251,8.85853249,218.45,218.39,0.34465462]
[1731749680558,8.85853249,218.43,218.35,0.12549]
[1731749680863,8.85853249,218.42,218.36,0.09367462]
[1731749681068,8.85853249,218.42,218.36,0.21916462]
[1731749681236,8.85853249,218.42,218.37,0.12549]
[1731749681963,4.5785,218.41,218.37,0.12549]
[1731749684241,8.85853249,218.44,218.37,0.12549]
[1731749685070,16.0204,218.47,218.4,0.12549]
[1731749685244,8.85853249,218.46,218.4,0.12549]
[1731749685764,4.5772,218.47,218.4,32.72909111]
[1731749685955,4.5772,218.47,218.43,9.10951249]
[1731749686363,8.85853249,218.49,218.43,0.25098]
[1731749687052,20.0,218.48,218.43,0.25098]
[1731749687769,4.5772,218.47,218.43,0.25098]
[1731749688354,13.43573249,218.47,218.42,0.12549]
[1731749688685,8.85853249,218.46,218.42,0.12549]
[1731749689057,13.43573249,218.47,218.42,0.12549]
[1731749689373,8.85853249,218.46,218.42,0.12549]
[1731749689682,4.5772,218.47,218.42,0.12549]
[1731749689683,4.5777,218.45,218.42,0.12549]
[1731749690476,4.5764,218.51,218.44,32.98007111]
[1731749690659,4.5764,218.51,218.46,0.12549]
[1731749690860,4.5764,218.51,218.46,23.902374]
[1731749691061,4.5764,218.51,218.47,0.12549]
[1731749691954,4.5764,218.51,218.46,0.25098]
[1731749692577,8.85853249,218.52,218.46,24.027864]
[1731749693078,8.85853249,218.53,218.46,24.027864]
[1731749693663,20.0,218.53,218.48,0.25098]
[1731749693970,4.5762,218.52,218.48,0.25098]
[1731749695458,13.43473249,218.52,218.47,0.25098]
[1731749695662,8.85853249,218.51,218.44,8.85853249]
[1731749695961,8.85853249,218.5,218.44,0.12549]
[1731749696162,8.85853249,218.51,218.44,8.98402249]
[1731749696361,8.85853249,218.51,218.45,0.12549]
[1731749696772,8.85853249,218.5,218.44,0.25098]
[1731749697561,4.5768,218.49,218.44,0.25098]
[1731749698061,13.43533249,218.49,218.44,0.25098]
[1731749700557,13.43533249,218.49,218.43,0.12549]
[1731749700886,8.85853249,218.47,218.42,6.3456]
[1731749701257,8.85853249,218.45,218.42,6.3456]
[1731749701687,8.85853249,218.46,218.42,6.3456]
[1731749703079,8.85853249,218.48,218.42,6.3456]
[1731749703277,4.5764,218.51,218.45,8.85853249]
[1731749704781,24.5764,218.51,218.45,8.85853249]
[1731749705482,16.0139,218.56,218.45,8.85853249]
[1731749705661,8.85853249,218.53,218.46,9.10951249]
[1731749706181,8.85853249,218.54,218.47,8.85853249]
[1731749706584,4.5754,218.56,218.48,8.85853249]
[1731749706772,4.5754,218.56,218.49,8.85853249]
[1731749707291,4.5754,218.56,218.5,15.7279]
[1731749707964,8.85853249,218.56,218.5,15.7279]
[1731749709692,4.5756,218.55,218.5,15.7279]
[1731749709884,4.5756,218.55,218.51,6.0115]
[1731749711790,4.5756,218.55,218.51,14.87003249]
[1731749711972,4.5753,218.57,218.52,0.25098]
[1731749712883,4.5753,218.57,218.52,9.10951249]
[1731749713758,9.2311587,218.64,218.54,0.12549]
[1731749713759,20.0,218.64,218.54,0.12549]
[1731749713959,20.0,218.6,218.54,0.25098]
[1731749714181,16.0076,218.65,218.54,0.25098]
[1731749714389,8.85853249,218.64,218.57,8.85853249]
[1731749714574,4.5735,218.65,218.6,8.85853249]
[1731749715470,8.85853249,218.68,218.61,9.10951249]
[1731749715669,4.5732,218.67,218.61,9.10951249]
[1731749715877,4.5732,218.67,218.61,8.85853249]
[1731749716892,4.5732,218.67,218.61,0.12549]
[1731749718682,8.85853249,218.69,218.62,8.85853249]
[1731749719193,8.85853249,218.68,218.61,8.98402249]
[1731749719894,4.5731,218.67,218.62,0.12549]
[1731749720200,8.85853249,218.65,218.6,0.25098]
[1731749720685,8.85853249,218.66,218.6,0.25098]
[1731749721789,8.85853249,218.65,218.6,0.25098]
[1731749721962,13.43213249,218.65,218.6,0.25098]
[1731749722767,4.5736,218.65,218.6,0.25098]
[1731749724390,4.5736,218.65,218.61,0.09367462]
[1731749724572,20.0,218.69,218.64,0.25098]
[1731749724776,28.85853249,218.69,218.64,0.25098]
[1731749725092,20.0,218.69,218.64,0.25098]
[1731749725402,4.572,218.72,218.67,15.51069]
[1731749725682,4.572,218.72,218.68,0.25098]
[1731749727065,5.0868348,218.74,218.68,0.25098]
[1731749727393,5.0868348,218.74,218.7,0.25098]
[1731749729870,8.85853249,218.72,218.67,21.7795]
[1731749730074,8.85853249,218.69,218.62,25.02353249]
[1731749730397,8.85853249,218.66,218.62,16.165]
[1731749730583,8.85853249,218.64,218.62,16.165]
[1731749730890,8.85853249,218.63,218.62,16.165]
[1731749731391,8.85853249,218.69,218.62,25.02353249]
[1731749731593,8.85853249,218.71,218.65,0.09367462]
[1731749731897,4.5722,218.71,218.65,8.95220711]
[1731749732092,4.5722,218.71,218.67,0.09367462]
[1731749732590,4.5722,218.71,218.67,0.21916462]
[1731749733081,13.43073249,218.71,218.68,0.12549]
[1731749733487,4.5722,218.71,218.68,0.12549]
[1731749734878,18.36874603,218.71,218.68,0.12549]
[1731749735289,18.36874603,218.71,218.67,0.12549]
[1731749735801,18.36874603,218.71,218.65,0.34465462]
[1731749736687,23.776884,218.7,218.63,13.79654603]
[1731749736897,13.79654603,218.7,218.63,13.79654603]
[1731749737197,18.36874603,218.71,218.64,0.09367462]
[1731749737403,4.5722,218.71,218.64,13.89022065]
[1731749738303,4.5722,218.71,218.65,0.25098]
[1731749740079,13.79654603,218.69,218.65,0.25098]
[1731749740295,13.79654603,218.67,218.65,0.25098]
[1731749740597,13.79654603,218.67,218.62,16.165]
[1731749740598,13.79654603,218.66,218.63,0.25098]
[1731749741005,13.79654603,218.64,218.63,0.12549]
[1731749741379,13.79654603,218.64,218.62,16.165]
[1731749741607,13.79654603,218.63,218.62,16.165]
[1731749746400,13.79654603,218.63,218.61,6.5693]
[1731749746700,13.79654603,218.62,218.61,6.69479]
[1731749748189,13.79654603,218.62,218.61,0.12549]
[1731749752507,13.79654603,218.63,218.61,0.12549]
[1731749752695,13.79654603,218.63,218.62,0.12549]
[1731749755009,8.8358932,218.63,218.62,0.12549]
[1731749756096,4.5722,218.71,218.6,9.18054782]
[1731749756303,8.8358932,218.68,218.6,9.18054782]
[1731749757111,13.4087932,218.68,218.6,13.75504782]
[1731749757313,8.8358932,218.67,218.6,13.75504782]
[1731749758909,8.8358932,218.68,218.62,0.21916462]
[1731749759089,8.8358932,218.68,218.63,0.12549]
[1731749759294,8.8358932,218.68,218.65,0.12549]
[1731749759817,8.8358932,218.69,218.65,0.12549]
[1731749759989,8.8358932,218.69,218.64,0.09367462]
[1731749760494,13.4084932,218.69,218.65,0.12549]
[1731749760909,4.5726,218.69,218.67,15.13619]
[1731749761425,13.4084932,218.69,218.67,15.13619]
[1731749761899,8.8358932,218.7,218.67,15.13619]
[1731749762300,24.572,218.72,218.67,15.13619]
[1731749762608,8.8358932,218.7,218.67,15.13619]
[1731749762924,8.8358932,218.73,218.68,0.12549]
[1731749763299,7.67566325,218.74,218.7,0.12549]
[1731749763512,0.5151348,218.74,218.7,0.25098]
[1731749763708,5.0867348,218.74,218.7,0.25098]
[1731749763930,8.8358932,218.73,218.69,0.21916462]
[1731749764214,8.8358932,218.7,218.66,6.2635]
[1731749764416,5.0867348,218.74,218.62,15.0107]
[1731749764417,8.8358932,218.67,218.62,15.0107]
[1731749764615,8.8358932,218.65,218.62,15.0107]
[1731749764812,8.8358932,218.66,218.62,15.0107]
[1731749766703,7.16052845,218.7,218.63,0.12549]
[1731749766909,8.8358932,218.67,218.63,0.25098]
[1731749767107,8.8358932,218.65,218.63,0.25098]
[1731749767599,8.8358932,218.66,218.63,0.25098]
[1731749767816,8.8358932,218.65,218.63,0.25098]
[1731749768201,4.5733,218.66,218.63,0.25098]
[1731749768406,8.8358932,218.65,218.63,0.25098]
[1731749768627,4.5733,218.66,218.63,0.25098]
[1731749768833,4.5733,218.66,218.61,6.2635]
[1731749768834,8.8358932,218.64,218.61,6.2635]
[1731749769117,4.5733,218.66,218.57,15.0107]
[1731749769118,8.8358932,218.62,218.57,15.0107]
[1731749770127,8.8358932,218.62,218.58,0.09367462]
[1731749770306,8.8358932,218.62,218.58,0.34465462]
[1731749772033,8.8358932,218.64,218.58,0.34465462]
[1731749772211,8.8358932,218.65,218.58,0.34465462]
[1731749772601,8.8358932,218.64,218.58,0.34465462]
[1731749773108,13.4096932,218.64,218.58,0.34465462]
[1731749773506,4.5728,218.68,218.58,25.19284782]
[1731749773717,8.8358932,218.65,218.58,25.19284782]
[1731749774325,8.8358932,218.65,218.58,16.35695462]
[1731749775123,8.8358932,218.64,218.58,16.35695462]
[1731749775810,8.8358932,218.63,218.58,16.35695462]
[1731749776122,8.8358932,218.62,218.58,0.34465462]
[1731749776811,8.8358932,218.63,218.58,0.34465462]
[1731749777414,20.0,218.67,218.58,0.34465462]
[1731749777615,13.4091932,218.66,218.58,13.75534782]
[1731749777823,8.8358932,218.67,218.63,0.12549]
[1731749778028,8.8358932,218.66,218.63,0.25098]
[1731749778529,8.8358932,218.67,218.63,0.25098]
[1731749778829,13.80072316,218.67,218.63,0.25098]
[1731749779509,13.80072316,218.66,218.63,0.25098]
[1731749780933,18.37402316,218.66,218.63,0.25098]
[1731749781310,13.80072316,218.64,218.58,11.4374]
[1731749781513,13.80072316,218.62,218.57,15.0107]
[1731749782727,18.37472316,218.63,218.58,0.34465462]
[1731749783119,13.80072316,218.62,218.58,0.34465462]
[1731749783522,18.37472316,218.63,218.58,0.34465462]
[1731749784935,13.80072316,218.66,218.6,0.34465462]
[1731749785226,13.80072316,218.68,218.62,0.21916462]
[1731749785432,13.80072316,218.67,218.64,0.21916462]
[1731749785729,13.80072316,218.67,218.65,0.25098]
[1731749787135,18.37382316,218.67,218.65,0.25098]
[1731749787434,13.80072316,218.66,218.65,0.12549]
[1731749788926,4.5731,218.67,218.65,0.12549]
[1731749789236,18.37382316,218.67,218.65,0.12549]
[1731749790937,13.80072316,218.66,218.65,0.12549]
[1731749792155,18.37402316,218.66,218.65,0.12549]
[1731749798932,8.83382057,218.66,218.65,0.34465462]
[1731749799119,8.83382057,218.68,218.65,0.34465462]
[1731749799445,8.83382057,218.67,218.65,0.34465462]
[1731749802118,8.83382057,218.66,218.65,0.34465462]
[1731749802619,8.83382057,218.67,218.65,0.34465462]
[1731749803042,20.0,218.71,218.65,0.34465462]
[1731749803223,8.83382057,218.67,218.65,0.34465462]
[1731749809625,13.40692057,218.67,218.65,0.34465462]
[1731749811525,13.40692057,218.67,218.58,11.4374]
[1731749811526,8.83382057,218.66,218.58,11.4374]
[1731749811728,8.83382057,218.64,218.58,11.4374]
[1731749812229,8.83382057,218.64,218.59,0.09367462]
[1731749812932,8.83382057,218.64,218.61,0.09367462]
[1731749813143,8.83382057,218.65,218.62,0.12549]
[1731749813449,8.83382057,218.65,218.62,0.25098]
[1731749813631,13.40742057,218.65,218.62,0.25098]
[1731749814632,4.5724,218.7,218.65,0.09367462]
[1731749814843,8.83382057,218.69,218.65,0.21916462]
[1731749815830,4.5728,218.68,218.65,0.21916462]
[1731749816540,13.40662057,218.68,218.65,0.21916462]
[1731749818545,4.5718,218.73,218.69,0.21916462]
[1731749818754,13.40562057,218.73,218.69,0.21916462]
[1731749818928,0.5151348,218.74,218.71,0.21916462]
[1731749819139,0.5151348,218.74,218.73,0.34465462]
[1731749819452,9.34895537,218.74,218.73,0.12549]
[1731749819953,4.5718,218.73,218.61,0.25098]
[1731749820162,8.83382057,218.65,218.61,0.25098]
[1731749820356,8.83382057,218.65,218.62,0.09367462]
[1731749821251,8.83382057,218.67,218.62,0.09367462]
[1731749821848,4.572,218.72,218.62,0.09367462]
[1731749822082,8.83382057,218.69,218.62,8.92749519]
[1731749822231,8.83382057,218.69,218.64,0.09367462]
[1731749822432,8.83382057,218.7,218.66,0.21916462]
[1731749822752,13.40612057,218.71,218.68,0.21916462]
[1731749822931,4.5723,218.71,218.68,0.21916462]
[1731749823135,8.83382057,218.69,218.68,0.34465462]
[1731749823446,8.83382057,218.69,218.6,11.4361]
[1731749823752,8.83382057,218.64,218.57,4.575]
[1731749824139,8.83382057,218.65,218.58,8.92749519]
[1731749824857,8.83382057,218.65,218.58,13.50229519]
[1731749825151,8.83382057,218.66,218.62,0.09367462]
[1731749825357,13.40702057,218.67,218.63,0.12549]
[1731749827039,8.83382057,218.65,218.63,0.12549]
[1731749827954,8.83382057,218.66,218.63,0.12549]
[1731749828551,8.83382057,218.67,218.63,0.12549]
[1731749831159,8.83382057,218.65,218.51,43.03758726]
[1731749831370,8.83382057,218.56,218.51,43.03758726]
[1731749832043,8.83382057,218.54,218.51,43.03758726]
[1731749832763,28.83382057,218.54,218.51,43.03758726]
[1731749833252,33.40962057,218.54,218.51,43.03758726]
[1731749834658,13.40962057,218.54,218.51,43.03758726]
[1731749834849,20.0,218.53,218.44,0.34465462]
[1731749835050,13.82487658,218.48,218.44,0.34465462]
[1731749835253,13.82487658,218.47,218.44,0.34465462]
[1731749835765,13.82487658,218.48,218.41,36.48757658]
[1731749835939,13.82487658,218.48,218.41,41.06597658]
[1731749836549,13.82487658,218.49,218.42,13.9185512]
[1731749836861,13.82487658,218.5,218.44,0.09367462]
[1731749837096,13.82487658,218.51,218.44,0.21916462]
[1731749837251,13.82487658,218.51,218.46,0.21916462]
[1731749837455,13.82487658,218.5,218.48,0.21916462]
[1731749837967,13.82487658,218.5,218.49,0.12549]
[1731749838154,20.0,218.56,218.49,0.12549]
[1731749838155,20.0,218.56,218.51,0.12549]
[1731749838338,13.82487658,218.55,218.51,0.25098]
[1731749839072,13.82487658,218.53,218.51,0.25098]
[1731749839243,13.82487658,218.52,218.45,0.25098]
[1731749839570,13.82487658,218.49,218.45,0.25098]
[1731749839739,13.82487658,218.57,218.44,11.4447]
[1731749839946,13.82487658,218.47,218.41,27.2411]
[1731749840153,13.82487658,218.49,218.42,13.9185512]
[1731749841155,13.82487658,218.49,218.44,0.09367462]
[1731749841379,13.82487658,218.48,218.44,0.09367462]
[1731749841553,13.82487658,218.53,218.46,13.9185512]
[1731749841751,4.5754,218.56,218.48,0.34465462]
[1731749841752,13.82487658,218.55,218.48,0.34465462]
[1731749841975,13.82487658,218.55,218.48,14.1695312]
[1731749843053,13.82487658,218.56,218.5,0.34465462]
[1731749843971,13.82487658,218.58,218.5,30.1876312]
[1731749844153,13.82487658,218.57,218.5,30.1876312]
[1731749844352,13.82487658,218.55,218.5,11.78625462]
[1731749844751,4.5748,218.59,218.5,0.34465462]
[1731749844752,13.82487658,218.54,218.5,0.34465462]
[1731749845874,13.82487658,218.56,218.5,0.34465462]
[1731749846176,13.82487658,218.58,218.51,13.82487658]
[1731749846379,13.82487658,218.59,218.53,0.34465462]
[1731749846753,13.82487658,218.6,218.53,14.1695312]
[1731749846954,13.82487658,218.59,218.53,0.34465462]
[1731749847572,13.82487658,218.61,218.54,18.40067658]
[1731749847756,13.82487658,218.62,218.55,14.1695312]
[1731749848291,13.82487658,218.63,218.57,0.34465462]
[1731749849276,13.82487658,218.64,218.6,0.12549]
[1731749849488,13.82487658,218.64,218.6,0.25098]
[1731749849966,13.82487658,218.64,218.6,0.09367462]
[1731749850569,4.5734,218.66,218.6,0.09367462]
[1731749850570,13.82487658,218.65,218.6,0.09367462]
[1731749851479,13.82487658,218.66,218.6,0.09367462]
[1731749851661,13.82487658,218.67,218.62,0.09367462]
[1731749851860,13.82487658,218.72,218.66,0.09367462]
[1731749852111,14.34001138,218.74,218.68,0.09367462]
[1731749854189,0.5151348,218.74,218.68,13.9185512]
[1731749854355,0.5151348,218.74,218.69,0.25098]
[1731749854655,14.34001138,218.74,218.69,0.25098]
[1731749855067,14.34001138,218.74,218.69,0.09367462]
[1731749855663,0.5151348,218.74,218.73,14.1695312]
[1731749856081,0.5151348,218.74,218.73,20.2747312]
[1731749856392,18.39407658,218.86,218.75,0.09367462]
[1731749856573,18.39407658,218.86,218.8,0.34465462]
[1731749856775,13.82487658,218.85,218.8,0.34465462]
[1731749857085,13.82487658,218.84,218.8,0.34465462]
[1731749857284,4.5692,218.86,218.73,22.29497462]
[1731749857285,13.82487658,218.81,218.73,36.02617658]
[1731749857488,13.82487658,218.8,218.74,0.25098]
[1731749857694,13.82487658,218.78,218.75,0.09367462]
[1731749858169,13.82487658,218.79,218.75,0.09367462]
[1731749858986,13.82487658,218.77,218.74,0.25098]
[1731749859168,13.82487658,218.77,218.73,22.2013]
[1731749859169,13.82487658,218.75,218.68,22.2013]
[1731749859489,13.82487658,218.79,218.68,22.2013]
[1731749859490,13.82487658,218.72,218.68,22.2013]
[1731749859666,13.82487658,218.71,218.68,22.2013]
[1731749860367,13.82487658,218.69,218.63,15.4081]
[1731749860574,13.82487658,218.67,218.63,15.4081]
[1731749860873,13.82487658,218.69,218.63,15.4081]
[1731749862404,13.82487658,218.73,218.67,0.34465462]
[1731749862607,13.82487658,218.75,218.67,14.1695312]
[1731749862904,13.82487658,218.75,218.69,0.34465462]
[1731749863206,20.0,218.76,218.71,0.34465462]
[1731749863445,13.82487658,218.76,218.71,0.34465462]
[1731749864501,13.82487658,218.75,218.71,0.34465462]
[1731749864705,13.82487658,218.75,218.71,0.12549]
[1731749864895,13.82487658,218.72,218.7,0.12549]
[1731749865403,13.82487658,218.71,218.63,29.23297658]
[1731749865720,13.82487658,218.68,218.63,15.4081]
[1731749866004,13.82487658,218.68,218.64,0.09367462]
[1731749866201,13.82487658,218.68,218.63,15.4081]
[1731749866414,13.82487658,218.67,218.63,15.4081]
[1731749866701,13.82487658,218.68,218.63,15.4081]
[1731749868568,13.82487658,218.69,218.65,0.12549]
[1731749868969,13.82487658,218.68,218.65,0.12549]
[1731749869180,13.82487658,218.69,218.65,0.12549]
[1731749869376,13.82487658,218.68,218.65,0.12549]
[1731749869573,13.82487658,218.67,218.65,0.12549]
[1731749870189,13.82487658,218.68,218.65,0.12549]
[1731749875596,13.82487658,218.7,218.67,0.12549]
[1731749875897,13.82487658,218.7,218.67,0.25098]
[1731749876271,13.82487658,218.7,218.68,0.09367462]
[1731749876478,13.82487658,218.77,218.7,0.34465462]
[1731749876982,13.82487658,218.75,218.7,0.34465462]
[1731749877181,13.82487658,218.72,218.66,0.12549]
[1731749877374,13.82487658,218.7,218.65,0.12549]
[1731749877785,13.82487658,218.71,218.66,0.21916462]